Cogmind - Beta 11.1 @@@ ROGUE MODE // 2022.06.26 @ 14:29:53 Player: lumberblack Result: Self-destructed Performance ------------- Evolutions (2) 1000 Regions Visited (6) 1200 Robots Destroyed (50) 250 Value Destroyed (876) 876 Prototype IDs (40) 800 Alien Tech Used (0) 0 Bonus (-4914) -4914 TOTAL SCORE: -788 Bonus ------- Follower Combat Kills 223 Aligned with FarCom 300 Friendly Fire -5437 Cogmind --------- Core Integrity 519/550 Matter 275/300 Energy 150/150 System Corruption 10% Temperature Cool (0) Movement Treading (170) Location -8/Storage Parts ------- > --- POWER (1) -------- Light Angular Momentum Engine > --- PROPULSION (3) --- Armored Treads Armored Treads Armored Treads > --- UTILITY (5) ------ Experimental Heat Sink High-capacity Storage Unit Improved Sensor Array Improved Signal Interpreter Advanced Targeting Computer > --- WEAPON (2) ------- Precision Rocket Launcher > --- INVENTORY (20) --- Mini Fusion Reactor Cooled Gravmag System Cooled Gravmag System Large Storage Unit Advanced Energy Well (500) Improved Utility Shielding Advanced Thermal Shield Authchip [Power] Authchip [Device] Authchip [Processor] 01-MTF's Autohacker Army-in-a-Box (30/30) 01-MTF's Shockpuncher Missile Launcher Plasma Cutter Peak State ------------ > --- POWER ------------ Mini Fusion Reactor > --- PROPULSION ------- Armored Treads Armored Treads Armored Treads > --- UTILITY ---------- Experimental Heat Sink High-capacity Storage Unit Improved Sensor Array Improved Targeting Computer Advanced Targeting Computer > --- WEAPON ----------- AWS/Thermal > --- INVENTORY -------- Light Angular Momentum Engine Advanced Treads Advanced Treads Cooled Gravmag System Cooled Gravmag System Large Storage Unit Advanced Energy Well Improved Signal Interpreter Improved Weapon Shielding Advanced Thermal Shield 01-MTF's Autohacker Army-in-a-Box 01-MTF's Shockpuncher Missile Launcher Plasma Cutter [Rating: 61] Favorites ----------- Power Nuclear Core Engine Light Angular Momentum Engine Power Core Nuclear Core Reactor Mini Fusion Reactor Propulsion Armored Treads Treads Armored Treads Leg Aluminum Leg Hover Unit Cooled Gravmag System Flight Unit Improved VTOL Module Utility High-capacity Storage Unit Device Seismic Detector Storage High-capacity Storage Unit Processor Advanced Targeting Computer Protection Weapon Shielding Weapon Enhanced Autogun Energy Gun AWS/Thermal Energy Cannon Heavy Particle Cannon Ballistic Gun Enhanced Autogun Ballistic Cannon Assault Cannon Launcher Missile Launcher Special Weapon Plasma Cutter Build | -11 -10 -10 -10 -9 -8 -8 ------- Run | Scr Mat Min Exi Min Mat Sto Slots Evolved 4 | . . . . . 4 . Power . | . . . . . . . Propulsion 1 | . . . . . 1 . Utility 3 | . . . . . 3 . Weapon . | . . . . . . . Parts Attached 90 | 4 2 6 4 1 36 37 Power 11 | . . . . . 4 7 Engine 6 | . . . . . 2 4 Core 4 | . . . . . 2 2 Reactor 1 | . . . . . . 1 Propulsion 12 | 2 . 1 . . 5 4 Treads 10 | 2 . 1 . . 4 3 Leg . | . . . . . . . Wheel . | . . . . . . . Hover 1 | . . . . . . 1 Flight 1 | . . . . . 1 . Utility 22 | 2 . . 3 1 8 8 Device 9 | 2 . . . 1 2 4 Storage 7 | . . . 3 . 3 1 Processor 4 | . . . . . 2 2 Hackware . | . . . . . . . Protection 2 | . . . . . 1 1 Artifact . | . . . . . . . Weapon 45 | . 2 5 1 . 19 18 Energy Gun 10 | . . . . . . 10 Energy Cannon 6 | . . . . . 6 . Ballistic Gun 20 | . 1 4 1 . 11 3 Ballistic Cannon 3 | . . 1 . . 1 1 Launcher 3 | . 1 . . . 1 1 Special Weapon 3 | . . . . . . 3 Impact Weapon . | . . . . . . . Slashing Weapon . | . . . . . . . Piercing Weapon . | . . . . . . . Special Melee Weapon . | . . . . . . . Unidentified Prototypes 10 | . . . . . 2 8 Corrupted Parts 2 | . . . . . . 2 System Corruption 8 | . . . . . . 8 Parts Lost . | . . . . . . . Power . | . . . . . . . Propulsion . | . . . . . . . Utility . | . . . . . . . Weapon . | . . . . . . . Highest Loss Streak . | . . . . . . . To Critical Strikes . | . . . . . . . Average Slot Usage (%) 87 | . 71 54 60 84 95 92 Engine 2 | . . . . . 5 2 Core 4 | . . . . . 3 6 Treads 27 | . 28 28 28 28 26 27 Device 14 | . 14 5 . 13 19 14 Storage 10 | . . . 8 14 11 12 Processor 10 | . . . . . 4 17 Protection 2 | . . . . . 6 . Energy Gun 3 | . 14 5 . . . 5 Ballistic Gun 11 | . 14 14 22 28 16 4 Naked Turns . | . . . . . . . Heaviest Build 61 | 3 5 8 26 27 61 58 Greatest Support 62 | 3 3 40 42 42 62 62 Greatest Overweight (x) 2 | . 1 2 . . 1 1 Average Overweight (x) . | . . . . . . . Largest Inventory Capacity 20 | 8 5 5 20 15 20 20 Average Capacity 17 | 5 5 5 11 15 19 20 Most Carried 20 | 6 5 5 15 15 20 20 Average Carried 16 | 1 3 4 10 15 18 19 Final Capacity 20 | 5 5 5 15 15 20 20 Final Carried 20 | 2 5 5 15 15 20 20 Class Distribution -------------------- 67% | Mutant 16% | Skirmisher 12% | Scavenger-Skirmisher 4% | Scavenger-Mutant Dominant Class ---------------- Mutant | -10/Materials Mutant | -10/Mines Mutant | -10/Exiles Mutant | -9/Mines Mutant | -8/Materials Mutant | -8/Storage Resources | -11 -10 -10 -10 -9 -8 -8 ----------- Run | Scr Mat Min Exi Min Mat Sto Matter Collected 1578 | 247 18 121 . 33 634 525 Remotely . | . . . . . . . Salvage Created 1782 | 64 38 42 . . 405 1233 Parts 122 | 9 7 9 . . 26 71 Haulers Intercepted 6 | . . . . . 2 4 Recyclers Shooed 3 | . . . . . . 3 Parts Field Recycled . | . . . . . . . Retrieved Matter . | . . . . . . . Parts Self-Destructed . | . . . . . . . Prevented . | . . . . . . . Kills | -11 -10 -10 -10 -9 -8 -8 ------- Run | Scr Mat Min Exi Min Mat Sto Combat Hostiles Destroyed 25 | . 3 5 . . 4 13 Melee 1 | . . . . . . 1 Guns 20 | . 3 2 . . 3 12 AOE 4 | . . 3 . . 1 . Classes Destroyed 9 | 1 1 . . . 4 3 Worker 5 | . . . . . . 5 Builder 1 | . . . . . . 1 Tunneler 4 | 3 . . . . 1 . Hauler 6 | . . . . . 2 4 Recycler 5 | . . . . . . 5 Watcher 2 | . . . . . 2 . Swarmer 13 | . 3 5 . . 1 4 Grunt 8 | . . . . . 1 7 Sentry 4 | . . . . . 2 2 Thug 1 | . . . . . 1 . Best Kill Streak 5 | 2 3 3 . . 3 5 Combat Bots Only 4 | . 3 3 . . 2 4 Max Kills in Single Turn 2 | 1 2 2 . . 1 2 Gunslinging 1 | . 1 . . . . . Exploded 2 | . . 2 . . 1 . Melee 1 | . . . . . . 1 Uniques/NPCs Destroyed 1 | . . . . . . 1 01-MTF (-8/Storage) Combat | -11 -10 -10 -10 -9 -8 -8 -------- Run | Scr Mat Min Exi Min Mat Sto Damage Taken 619 | . 118 33 . . 165 303 Core 94 | . 50 13 . . . 31 Absorbed by Shields . | . . . . . . . Redirected to Shielding 14 | . . . . . 14 . Core Remaining (%) 87 | 100 . . . 74 . . Volleys Fired 177 | 7 8 15 . 1 32 114 Largest 2 | 2 2 2 . 2 2 2 Hottest 100 | 60 60 60 . 50 100 50 Shots Fired 271 | 14 16 16 . 2 49 174 Gun 147 | 14 16 12 . 2 34 69 Cannon 16 | . . 2 . . 14 . Launcher 4 | . . 2 . . 1 1 Special 104 | . . . . . . 104 Kinetic 70 | 7 8 13 . 2 38 2 Thermal 188 | 7 8 1 . . 10 162 Explosive 4 | . . 2 . . 1 1 Electromagnetic 9 | . . . . . . 9 Robot Hit Streak 13 | 6 9 2 . 1 9 13 Robot Miss Streak 6 | 2 2 3 . 4 6 2 Penetration Max . | . . . . . . . Secondary Targets 1 | . 1 . . . . . Max Gunslinging Chain 1 | . 1 . . . . . Autonomous 58 | . . . . . . 58 Shots Hit Robots 189 | 9 12 5 . 1 24 138 Core Hits 85 | 3 5 8 . 1 16 52 Critical Kills . | . . . . . . . Critical Parts Destroyed . | . . . . . . . Critical Strikes 3 | . . . . . . 3 Sever 3 | . . . . . . 3 Melee Attacks . | . . . . . . . Impact . | . . . . . . . Slashing . | . . . . . . . Piercing . | . . . . . . . Sneak Attacks . | . . . . . . . Combat Hostiles . | . . . . . . . Follow-up Attacks . | . . . . . . . Damage Inflicted 3470 | 87 113 217 . 35 634 2384 Guns 2521 | 87 113 106 . 17 379 1819 Cannons 100 | . . . . . 100 . Explosions 251 | . . 111 . . 111 29 Melee . | . . . . . . . Ramming 190 | . . . . 18 44 128 Kinetic 596 | 24 48 93 . 17 379 35 Thermal 2138 | 63 65 13 . . 100 1897 Explosive 222 | . . 111 . . 111 . Electromagnetic 324 | . . . . . . 324 Impact . | . . . . . . . Slashing . | . . . . . . . Piercing . | . . . . . . . Highest Corruption 10 | . . . . . 2 10 Average Corruption 3 | . . . . . 1 3 Corruption Purged . | . . . . . . . Corruption Blocked . | . . . . . . . Effects 55 | . . . . . 15 40 Message Errors 14 | . . . . . 3 11 Matter Fused 16 | . . . . . 5 11 Heat Flow Errors 8 | . . . . . . 8 Energy Discharges 5 | . . . . . 1 4 Data Loss (minor) 7 | . . . . . 3 4 Data Loss (major) 3 | . . . . . 2 1 Misfires 1 | . . . . . 1 . Alerts 1 | . . . . . . 1 Overload Shots . | . . . . . . . Overflow Damage 1 | . . . . . 1 . Projectiles . | . . . . . . . Explosions 1 | . . . . . 1 . Melee . | . . . . . . . Knockbacks 2 | . . . . 1 . 1 Impact 2 | . . . . 1 . 1 Kinetic . | . . . . . . . Secondary . | . . . . . . . Self-Inflicted Damage 62 | . . . . . . 62 Shots 2 | . . . . . . 2 Rammed 26 | . . . . 2 2 22 Targets Rammed 35 | . . . . 2 3 30 Kicked . | . . . . . . . Crushed 9 | . . . . . 1 8 Highest Temperature 270 | 20 20 10 . . 270 245 Average Temperature 68 | 8 10 7 . . 92 86 Received Heat Transfer 189 | . . . . . 81 108 Siege Activations . | . . . . . . . Robots Corrupted 1 | . . . . . . 1 Combat Hostiles . | . . . . . . . Parts Fried 4 | . . . . . . 4 Impact Corruptions . | . . . . . . . Robots Melted . | . . . . . . . Combat Hostiles . | . . . . . . . Parts Melted 1 | . . . . . . 1 Heat Transferred 5481 | 150 150 25 . . 148 5008 Parts Sabotaged . | . . . . . . . Parts Stolen . | . . . . . . . Parts Stripped . | . . . . . . . Power Chain Reactions 1 | . . . . . . 1 Missiles Intercepted . | . . . . . . . Alert | -11 -10 -10 -10 -9 -8 -8 ------- Run | Scr Mat Min Exi Min Mat Sto Peak Influence 368 | 15 120 368 . . 189 219 Initial 46 | . 9 46 . . . 35 Average 64 | 5 60 259 . . 43 59 Maximum Alert Level 1 | . . 1 . . . 1 Low Security (%) 92 | 100 100 . . 100 100 98 Level 1 7 | . . 99 . . . 1 Level 2 . | . . . . . . . Level 3 . | . . . . . . . Level 4 . | . . . . . . . Level 5 . | . . . . . . . High Security . | . . . . . . . Max Security . | . . . . . . . Squads Dispatched 8 | . 1 1 . . 2 4 Investigation 2 | . . 1 . . . 1 Extermination . | . . . . . . . Reinforcement 3 | . 1 . . . 2 . Assault . | . . . . . . . Garrison 3 | . . . . . . 3 Intercept . | . . . . . . . Searches Triggered . | . . . . . . . Construction Impeded 1 | . . . . . 1 . Haulers Reinforced . | . . . . . . . Active Scanning Responses . | . . . . . . . Cargo Convoy Interrupts . | . . . . . . . Stealth | -11 -10 -10 -10 -9 -8 -8 --------- Run | Scr Mat Min Exi Min Mat Sto Distress Signals 1 | . 1 . . . . . Communications Jammed . | . . . . . . . Distress Signals . | . . . . . . . Times Spotted 44 | . 7 7 . . 15 15 Peak Tracking Total 5 | . 4 3 . . 5 3 Tactical Retreats 1 | . . . . . 1 . Traps | -11 -10 -10 -10 -9 -8 -8 ------- Run | Scr Mat Min Exi Min Mat Sto Traps Triggered 3 | . . . . . 2 1 Indirectly . | . . . . . . . Trap Hack Attempts . | . . . . . . . Triggered . | . . . . . . . Disarmed . | . . . . . . . Reprogrammed . | . . . . . . . Reused . | . . . . . . . Traps Extracted . | . . . . . . . Installed . | . . . . . . . Triggered . | . . . . . . . Machines | -11 -10 -10 -10 -9 -8 -8 ---------- Run | Scr Mat Min Exi Min Mat Sto Machines Disabled 6 | . . 5 . . 1 . Max in Single Turn 4 | . . 4 . . 1 . Garrison Access 1 | . . . . . 1 . Machines Sabotaged . | . . . . . . . Garrisons Compromised . | . . . . . . . Overloaded Fab Kills . | . . . . . . . Hacking | -11 -10 -10 -10 -9 -8 -8 --------- Run | Scr Mat Min Exi Min Mat Sto Machines Accessed 19 | . 4 1 1 . 6 7 Terminals 13 | . 4 . . . 4 5 Fabricators . | . . . . . . . Repair Stations 1 | . . . . . . 1 Recycling Units 1 | . . . . . . 1 Scanalyzers 1 | . . . . . 1 . Garrison Access 1 | . . . . . 1 . Total Hacks 65 | . 12 1 1 . 33 18 Successful 38 | . 4 1 1 . 24 8 Failed 27 | . 8 . . . 9 10 Catastrophic 4 | . 1 . . . . 3 Database Lockouts . | . . . . . . . Manual 25 | . 8 . 1 . 11 5 Terminals 42 | . 12 . . . 20 10 Fabricators . | . . . . . . . Repair Stations 5 | . . . . . . 5 Recycling Units 3 | . . . . . . 3 Scanalyzers 10 | . . . . . 10 . Garrison Access 3 | . . . . . 3 . Terminal Hacks 21 | . 4 1 1 . 12 3 Robot Analysis 3 | . 1 . . . 2 . Prototype ID Bank 5 | . 2 . . . 3 . Open Door 2 | . . 1 . . . 1 Branch Access Points 1 | . . . . . 1 . Terminal Index 3 | . 1 . . . 1 1 Unreport Threat 2 | . . . . . 2 . Locate Traps 1 | . . . . . 1 . Hauler Manifests 1 | . . . . . 1 . Zone Layout 2 | . . . . . 1 1 EX-Prototype ID Bank 1 | . . . 1 . . . Fabricator Hacks . | . . . . . . . Repair Station Hacks 2 | . . . . . . 2 Scan Component 2 | . . . . . . 2 Recycling Unit Hacks 1 | . . . . . . 1 Retrieve Components 1 | . . . . . . 1 Scanalyzer 9 | . . . . . 9 . Insert Component 3 | . . . . . 3 . Analyze 6 | . . . . . 6 . Garrison Access Hacks 1 | . . . . . 1 . Seal Access 1 | . . . . . 1 . Unauthorized Hacks 4 | . . . . . 2 2 Terminals 2 | . . . . . 2 . Botnet 1 | . . . . . 1 . Disrupt 1 | . . . . . 1 . Fabricators . | . . . . . . . Repair Stations . | . . . . . . . Recycling Units 2 | . . . . . . 2 Reject 1 | . . . . . . 1 Mask 1 | . . . . . . 1 Scanalyzers . | . . . . . . . Garrison Access . | . . . . . . . Data Cores Recovered . | . . . . . . . Used . | . . . . . . . Hacking Detections 16 | . 4 . . . 6 6 Full Trace Events . | . . . . . . . Feedback Events . | . . . . . . . Feedback Blocked . | . . . . . . . Robot Schematics Acquired . | . . . . . . . Robots Built . | . . . . . . . Authchips . | . . . . . . . Time . | . . . . . . . Total Robot Build Rating . | . . . . . . . Part Schematics Acquired 2 | . . . . . 2 . Parts Built . | . . . . . . . Authchips . | . . . . . . . Time . | . . . . . . . Total Part Build Rating . | . . . . . . . Parts Repaired . | . . . . . . . Time . | . . . . . . . Parts Recycled . | . . . . . . . Recycled Matter . | . . . . . . . Retrieved Matter . | . . . . . . . Retrieved Components 9 | . . . . . . 9 Parts Scanalyzed 3 | . . . . . 3 . Part Schematics Acquired 2 | . . . . . 2 . Parts Damaged . | . . . . . . . Bothacking | -11 -10 -10 -10 -9 -8 -8 ------------ Run | Scr Mat Min Exi Min Mat Sto Used RIF Installer . | . . . . . . . Robots Hacked . | . . . . . . . Non-combat . | . . . . . . . Combat . | . . . . . . . Robot Hacks Applied . | . . . . . . . Relay Couplers Released . | . . . . . . . Fabnet Peak Effective % . | . . . . . . . Robots Rewired . | . . . . . . . Allies Hacked . | . . . . . . . Hacks Repelled . | . . . . . . . Allies | -11 -10 -10 -10 -9 -8 -8 -------- Run | Scr Mat Min Exi Min Mat Sto Total Allies 5 | . . 3 . 1 . 1 Largest Group 4 | . . 3 3 4 4 1 Highest-Rated Group 100 | . . 40 40 71 71 100 Highest-Rated Ally 100 | . . 16 16 31 31 100 Total Orders . | . . . . . . . Ally Attacks 35 | . . 9 . . 17 9 Total Damage 694 | . . 94 . . 160 440 Kills 14 | . . 4 . . 5 5 Allies Corrupted . | . . . . . . . Allies Melted . | . . . . . . . Turrets Deployed 3 | . . . . . . 3 Intel | -11 -10 -10 -10 -9 -8 -8 ------- Run | Scr Mat Min Exi Min Mat Sto Robot Analysis Total 3 | . 1 . . . 2 . Derelict Logs Recovered 2 | . . 1 . 1 . . Drone Launches . | . . . . . . . Drone Recoveries . | . . . . . . . Exploration | -11 -10 -10 -10 -9 -8 -8 ------------- Run | Scr Mat Min Exi Min Mat Sto Turns Passed 4701 | 81 101 316 322 309 1267 2305 Spaces Moved 2376 | 47 143 403 362 199 512 710 Core 825 | 47 143 400 235 . . . Treads 1551 | . . 3 127 199 512 710 Legs . | . . . . . . . Wheels . | . . . . . . . Hover . | . . . . . . . Flight . | . . . . . . . Fastest Speed 50 | 50 50 50 50 152 155 161 Average Speed 123 | 50 50 51 85 152 158 168 Slowest Speed 250 | 50 100 160 152 152 250 250 Overloaded Moves . | . . . . . . . Propulsion Burnouts . | . . . . . . . Robots Hopped 9 | . . . . . . 9 Cave-ins Triggered . | . . . . . . . Exploration Rate (%) 43 | 3 30 72 69 34 33 61 Regions Visited 6 Branch Regions 4 Pre-discovered Areas 1 | . . . . . . 1 Known Exits Taken 1 | . . . . . 1 . Unknown Exits Taken 5 | 1 1 1 1 1 . . Scrap Searched 1 | . . . . 1 . . Spaces Dug 7 | . . . . . 7 . Terrain Destroyed 51 | . . . . . 24 27 Melee . | . . . . . . . Projectile 16 | . . . . . 9 7 AOE 35 | . . . . . 15 20 Terrain Rammed . | . . . . . . . Walls Destroyed . | . . . . . . . Machines Disabled . | . . . . . . . Actions | -11 -10 -10 -10 -9 -8 -8 --------- Run | Scr Mat Min Exi Min Mat Sto Total 3823 | 94 157 498 373 202 923 1576 Wait 1036 | 28 1 61 1 . 310 635 Move 2352 | 46 142 402 361 198 511 692 Hop 9 | . . . . . . 9 Pick Up 37 | 1 3 4 6 . 9 14 Fast Attach 43 | 2 . 1 1 1 16 22 Attach 15 | 2 . 1 2 . 3 7 Detach 18 | . . 1 . . 6 11 Swap 32 | . 2 4 1 . 17 8 Drop 69 | 8 1 9 1 . 16 34 Fire 177 | 7 8 15 . 1 32 114 Melee . | . . . . . . . Ram . | . . . . . . . Kick . | . . . . . . . Crush 35 | . . . . 2 3 30 Escape Stasis . | . . . . . . . Rewire . | . . . . . . . Trap . | . . . . . . . Miscellaneous . | . . . . . . . Route ------- -11/Scrapyard -10/Materials -10/Mines (discovered 2 exits: [*Mat] / *Exi) -10/Exiles -9/Mines -8/Materials (discovered 3 exits: *Fac / *Sto x2) -8/Storage (discovered 2 exits: *Fac / [Rec]) History --------- Turn | Location | Event 7 | -11/Scrapyard | Discovered new exit (range 3) 82 | -11/Scrapyard | Entered Materials 145 | -10/Materials | Discovered new exit (range 7) 183 | -10/Materials | Entered Mines 227 | -10/Mines | Assisted by bots powering up and referring to "LRC-V3" 243 | -10/Mines | Learned location of 1 exit from Materials 274 | -10/Mines | Discovered new exit (range 10) 298 | -10/Mines | Met a Derelict shopkeep closing up shop 342 | -10/Mines | Build established: Mutant 396 | -10/Mines | Deemed a non-threat by the Exiles lab entrance 396 | -10/Mines | Discovered new exit (range 5) 471 | -10/Mines | Assembled infested the area 499 | -10/Mines | Entered Exiles 499 | -10/Exiles | Accompanied by 3 allies 512 | -10/Exiles | Met 8R-AWN 520 | -10/Exiles | Met EX-HEX 537 | -10/Exiles | Met EX-BIN 557 | -10/Exiles | Met EX-DEC 603 | -10/Exiles | Aligned with FarCom system 603 | -10/Exiles | Given EX-Vault access code 615 | -10/Exiles | Opened EX-Vault 624 | -10/Exiles | Found Army-in-a-Box 628 | -10/Exiles | Found AWS/Thermal 633 | -10/Exiles | Found Deploy-a-Sentry 636 | -10/Exiles | Found Deploy-a-Sentry 638 | -10/Exiles | Found Deploy-a-Sentry 671 | -10/Exiles | Warned to stay clear of 0b10 Research branches 803 | -10/Exiles | Discovered new exit (range 10) 821 | -10/Exiles | Stole three prototypes: Army-in-a-Box, AWS/Thermal, Deploy-a-Sentry 821 | -10/Exiles | Entered Mines 821 | -9/Mines | Accompanied by 3 allies 863 | -9/Mines | Learned Materials security intel 940 | -9/Mines | Received a Mining Laser from a helpful Derelict 1011 | -9/Mines | Discovered new exit (range 15) 1052 | -9/Mines | A weapon hastily lodged in a ceiling crevice suddenly fell to the ground 1130 | -9/Mines | Entered Materials 1130 | -8/Materials | Accompanied by 4 allies 1130 | -8/Materials | Evolved 4 slots: Propulsion x1, Utility x3 1131 | -8/Materials | Identified exit to Factory 1866 | -8/Materials | Discovered new exit (range 5) 2099 | -8/Materials | Identified exit to Storage 2397 | -8/Materials | Entered Storage 2694 | -8/Storage | Met 01-MTF 2710 | -8/Storage | DAS Turret deployed 2712 | -8/Storage | DAS Turret deployed 2719 | -8/Storage | DAS Turret deployed 2875 | -8/Storage | Found Prototype Device 2875 | -8/Storage | Identified 01-MTF's Autohacker 3163 | -8/Storage | Destroyed 01-MTF 3178 | -8/Storage | Found 01-MTF's Shockpuncher 3465 | -8/Storage | Build established: Skirmisher 3506 | -8/Storage | Discovered new exit (range 14) 3530 | -8/Storage | Learned location of Armory (-4) 4189 | -8/Storage | Garrison activated, responded to threat 4410 | -8/Storage | Build established: Scavenger-Skirmisher 4681 | -8/Storage | Discovered exit to Factory (range 15) 4701 | -8/Storage | System corruption reached 10% 4702 | -8/Storage | Self-destructed Last Messages --------------- 04593_ Acquired 1 matter. 04593_ K-01 Serf collects debris. 04614_ AX3ZKOIWFH/=DZL 04614_ K-01 Serf collects debris. 04642_ R-06 Scavenger collects Hardlight Generator. 04644_ K-01 Serf collects debris. 04644_ R-06 Scavenger collects Cld. Ion Engine. 04666_ Slammed into K-01 Serf. 04667_ Y-45 Defender destroyed. 04681_ EXIT=FOUND: FACTORY 04688_ Acquired 6 matter. 04696_ Triggered Proton Bomb Trap. 04696_ A bubble of electromagnetic force engulfs the area. 04696_ Door malfunctions. 04700_ Dropped AWS/Thermal. 04700_ Acquired Corrupted Prototype Launcher. 04700_ Identified Prc. Rocket Launcher. 04700_ Integrated Corrupted Prc. Rocket Launcher (+5). 04700_ Complication: FCS attempts to trigger Prc. Rocket Launcher. 04700_ Complication: Prc. Rocket Launcher misfires. Map ----- +----------------------------------------------------+ | ########### #?????#"!% ##+#???? | | T #######" ! #??????? | | "" !=%* #??????? | | ######"#%*"### #??????? | | ########### #????## =! # #??????? | | ??????????###+###?????# ! # #??????? | | ??????????????????????# # #??????? | | ??????????????????????# # +??????? | | ??????????????????????# %# # ?????? | | ??????????????????????#! # # ?????? | | ??????????????????????######## #??????? | | ?????????????????????????????# #??????? | | ?????????????????????????????# #??????? | | ??????????????????Y??????????# #??????? | | ?????????????????????????????# #?????Y? | | ?????????????????????????????# #??????? | | ?????????????????????????????# #??????? | | ?????????????????????????????# #??????? | | ?????????????????????????????# #??????? | | ?????????????????????????????# #??????? | | ?????????????????????????????# #??????? | | ????????????????????????####?# #??????? | | ????????????????????????# ## ##?????? | | ???????????????????????## #?????? | | ??## ??????????????????#]] #?????? | | ####+??????????????????#]@[ =%[ #?????? | | ???????????g??????#]] [ #?????? | | ??????????????????## #?????? | | ??????????????Y????## ## ##?????? | | ####+?????????????????????##?# #??????? | | # ????????????????????????# #??????? | | # ????????????????????????# #??????? | | #""" ????????????????????????# #??????? | | #""" ????????????????????????# #??????? | | #""" ????????????????????????# #??????? | | #""" ????????????????????????# #??????? | | #""" ????????????????????????# < #??????? | | # ????????????????????????# #??????? | | # ?????????????????????????####??????? | | ##"T"???????????????????????????????????? | | ?####???????????????????????????????????? | | ????????????????????????????????????????? | | ????????????????????????????????????????? | | ????????????????????????????????????????? | | ????????????????????????????????????????? | | ????????????????????????????????????????? | | ????????????????????????????????????????? | | ????????????????????????????????????????? | | | | | +----------------------------------------------------+ Best States ------------- Heat Dissipation 57 Energy Generation 21 Energy Capacity 240 Matter Stores 370 Matter Capacity 450 Sight Range 18 Robot Scan Range 15 Terrain Scan Density 10 Weapon Shielding 66 Evasion (%) 50 Targeting Accuracy 14 Recoil Reduction 7 Authchip Count 3 Item Schematics ----------------- Imp. VTOL Module | -8/Materials | Scanalyzed Plasma Cutter | -8/Materials | Scanalyzed Robot Schematics ------------------ None Fabricated ------------ Nothing Alien Tech Used ----------------- None Achievements -------------- None Challenges ------------ None Game ------ Seed SpikedCompactDisintegrator Manual? 0 Play Time 01:02:40 Cumulative 381.3 hours Start 2022.06.26 @ 11:25:49 End 2022.06.26 @ 14:29:53 Sessions 2 Manual Loads 0 Difficulty Rogue Special Mode None Game No. 345 Rogue 345 Adventurer 0 Explorer 0 Win Type - Total 8 Types 5/1/2/0/0/0/0/0/0 Lore% 56 Gallery% 76 Achievement% 65 Wizard Run 0 Options --------- ASCII 0 Keyboard 0 Movement Numpad Keybinds 0 Fullscreen 2 Font 18/TerminusBold Map View 76x50 Tactical HUD 1 Map Filters NONE Filters NONE Steam 1 RUN: 61943581-7e36-4f69-bd18-b356b40cfd68